[Event "Titled Tuesday Blitz December 27 Late 2022"]
[White "Karas, Marek"]
[Black "Avila Pavas, Santiago"]
[WhiteFideId "14928558"]
[BlackFideId "4437128"]
[WhiteElo "2227"]
[BlackElo "2522"]
[Result "0-1"]
[Round "02"]
[TimeControl "180+2"]
[Date "2022.12.27"]
[WhiteClock "0:00:04"]
[BlackClock "0:00:10"]

1. d4 {[%clk 0:02:59]}  Nf6 {[%clk 0:02:58]} 2. Nf3 {[%clk 0:02:59]}  e6 {[%clk 0:02:58]} 3. c4 {[%clk 0:02:58]}  d5 {[%clk 0:02:58]} 4. Nc3 {[%clk 0:02:58]}  dxc4 {[%clk 0:02:58]} 5. e4 {[%clk 0:02:57]}  b5 {[%clk 0:02:58]} 6. e5 {[%clk 0:02:51]}  Nd5 {[%clk 0:02:59]} 7. Nxb5 {[%clk 0:02:48]}  Nc6 {[%clk 0:02:58]} 8. Bxc4 {[%clk 0:02:42]}  Nb6 {[%clk 0:02:58]} 9. Be2 {[%clk 0:02:36]}  Be7 {[%clk 0:02:58]} 10. O-O {[%clk 0:02:31]}  O-O {[%clk 0:02:58]} 11. Be3 {[%clk 0:02:24]}  Bb7 {[%clk 0:02:57]} 12. a3 {[%clk 0:02:19]}  a6 {[%clk 0:02:42]} 13. Nc3 {[%clk 0:02:18]}  Na5 {[%clk 0:02:43]} 14. Nd2 {[%clk 0:02:07]}  Nc6 {[%clk 0:02:35]} 15. Bf3 {[%clk 0:02:00]}  Rb8 {[%clk 0:02:34]} 16. Nb3 {[%clk 0:01:49]}  Nc4 {[%clk 0:02:31]} 17. Qe2 {[%clk 0:01:41]}  Nxe3 {[%clk 0:02:21]} 18. fxe3 {[%clk 0:01:42]}  Ba8 {[%clk 0:02:20]} 19. Qc2 {[%clk 0:01:30]}  Qc8 {[%clk 0:01:56]} 20. Be4 {[%clk 0:01:26]}  h6 {[%clk 0:01:55]} 21. Nd2 {[%clk 0:01:22]}  a5 {[%clk 0:01:49]} 22. Rab1 {[%clk 0:01:16]}  Qa6 {[%clk 0:01:40]} 23. Bd3 {[%clk 0:01:14]}  Qa7 {[%clk 0:01:40]} 24. Nf3 {[%clk 0:01:05]}  Rfd8 {[%clk 0:01:31]} 25. Qf2 {[%clk 0:00:56]}  a4 {[%clk 0:01:18]} 26. Nd2 {[%clk 0:00:33]}  Rf8 {[%clk 0:01:17]} 27. Nde4 {[%clk 0:00:26]}  f5 {[%clk 0:01:15]} 28. exf6 {[%clk 0:00:25]}  Bxf6 {[%clk 0:01:15]} 29. Nxf6+ {[%clk 0:00:26]}  Rxf6 {[%clk 0:01:16]} 30. Qg3 {[%clk 0:00:22]}  Rxf1+ {[%clk 0:01:07]} 31. Bxf1 {[%clk 0:00:23]}  Na5 {[%clk 0:00:53]} 32. h3 {[%clk 0:00:19]}  Nb3 {[%clk 0:00:53]} 33. Bc4 {[%clk 0:00:14]}  Nd2 {[%clk 0:00:51]} 34. Bxe6+ {[%clk 0:00:14]}  Kh8 {[%clk 0:00:52]} 35. Rd1 {[%clk 0:00:08]}  Rxb2 {[%clk 0:00:51]} 36. Qf4 {[%clk 0:00:04]}  Qb8 {[%clk 0:00:51]} 37. Ne4 {[%clk 0:00:02]}  Nxe4 {[%clk 0:00:51]} 38. d5 {[%clk 0:00:02]}  Nf6 {[%clk 0:00:51]} 39. e4 {[%clk 0:00:02]}  Qb6+ {[%clk 0:00:45]} 40. Kh2 {[%clk 0:00:02]}  Rf2 {[%clk 0:00:46]} 41. Qg3 {[%clk 0:00:02]}  Qd6 {[%clk 0:00:46]} 42. e5 {[%clk 0:00:02]}  Qb6 {[%clk 0:00:37]} 43. exf6 {[%clk 0:00:03]}  Rxf6 {[%clk 0:00:38]} 44. Rd3 {[%clk 0:00:03]}  Qb2 {[%clk 0:00:29]} 45. Re3 {[%clk 0:00:02]}  c5 {[%clk 0:00:18]} 46. Qe5 {[%clk 0:00:02]}  Qf2 {[%clk 0:00:11]} 47. Bg4 {[%clk 0:00:02]}  Bxd5 {[%clk 0:00:09]} 48. Qe8+ {[%clk 0:00:01]}  Bg8 {[%clk 0:00:09]} 49. Rg3 {[%clk 0:00:01]}  Rf8 {[%clk 0:00:09]} 50. Qe5 {[%clk 0:00:01]}  Qd4 {[%clk 0:00:08]} 51. Qxd4 {[%clk 0:00:01]}  cxd4 {[%clk 0:00:09]} 52. Rd3 {[%clk 0:00:02]}  Rd8 {[%clk 0:00:10]} 53. Bd1 {[%clk 0:00:02]}  Bc4 {[%clk 0:00:10]} 54. Rd2 {[%clk 0:00:03]}  Bb3 {[%clk 0:00:11]} 55. Be2 {[%clk 0:00:02]}  Kg8 {[%clk 0:00:11]} 56. Bd3 {[%clk 0:00:02]}  Kf7 {[%clk 0:00:11]} 57. Kg3 {[%clk 0:00:03]}  Ke6 {[%clk 0:00:12]} 58. Re2+ {[%clk 0:00:03]}  Kd5 {[%clk 0:00:12]} 59. Rf2 {[%clk 0:00:04]}  Re8 {[%clk 0:00:11]} 60. Rf5+ {[%clk 0:00:04]}  Re5 {[%clk 0:00:11]} 61. Rxe5+ {[%clk 0:00:03]}  Kxe5 {[%clk 0:00:12]} 62. Kf2 {[%clk 0:00:03]}  Bd5 {[%clk 0:00:10]} 63. g3 {[%clk 0:00:04]}  Be4 {[%clk 0:00:09]} 64. Bb5 {[%clk 0:00:03]}  Bc2 {[%clk 0:00:09]} 65. Ke1 {[%clk 0:00:02]}  Ke4 {[%clk 0:00:09]} 66. Kd2 {[%clk 0:00:03]}  Bb3 {[%clk 0:00:10]} 67. Bc6+ {[%clk 0:00:02]}  Ke5 {[%clk 0:00:07]} 68. Bf3 {[%clk 0:00:02]}  Bc4 {[%clk 0:00:06]} 69. Bd1 {[%clk 0:00:02]}  Bb5 {[%clk 0:00:07]} 70. Bf3 {[%clk 0:00:02]}  g6 {[%clk 0:00:07]} 71. Bg2 {[%clk 0:00:01]}  Kd6 {[%clk 0:00:07]} 72. h4 {[%clk 0:00:02]}  Kc5 {[%clk 0:00:07]} 73. Be4 {[%clk 0:00:02]}  g5 {[%clk 0:00:07]} 74. hxg5 {[%clk 0:00:03]}  hxg5 {[%clk 0:00:07]} 75. Bc2 {[%clk 0:00:04]}  Bc6 {[%clk 0:00:06]} 76. Bd1 {[%clk 0:00:03]}  Kc4 {[%clk 0:00:05]} 77. Bc2 {[%clk 0:00:03]}  Bd7 {[%clk 0:00:05]} 78. Bd1 {[%clk 0:00:03]}  d3 {[%clk 0:00:05]} 79. Bh5 {[%clk 0:00:01]}  Bb5 {[%clk 0:00:05]} 80. Bf7+ {[%clk 0:00:01]}  Kd4 {[%clk 0:00:05]} 81. Bg8 {[%clk 0:00:02]}  Ke4 {[%clk 0:00:04]} 82. Bh7+ {[%clk 0:00:02]}  Kf3 {[%clk 0:00:04]} 83. Bg8 {[%clk 0:00:01]}  Kxg3 {[%clk 0:00:05]} 84. Ke3 {[%clk 0:00:02]}  g4 {[%clk 0:00:05]} 85. Bd5 {[%clk 0:00:02]}  Kh2 {[%clk 0:00:05]} 86. Be4 {[%clk 0:00:02]}  g3 {[%clk 0:00:05]} 87. Bf3 {[%clk 0:00:02]}  g2 {[%clk 0:00:05]} 88. Bxg2 {[%clk 0:00:02]}  Kxg2 {[%clk 0:00:06]} 89. Kd2 {[%clk 0:00:02]}  Kf2 {[%clk 0:00:07]} 90. Kc3 {[%clk 0:00:02]}  Ke2 {[%clk 0:00:07]} 91. Kb2 {[%clk 0:00:03]}  d2 {[%clk 0:00:08]} 92. Kc3 {[%clk 0:00:03]}  d1=Q {[%clk 0:00:08]} 93. Kb2 {[%clk 0:00:04]}  Qb3+ {[%clk 0:00:08]} 94. Kc1 {[%clk 0:00:04]}  Qxa3+ {[%clk 0:00:09]} 95. Kc2 {[%clk 0:00:04]}  Bd3# {[%clk 0:00:10]} 0-1


[Site "https://www.chess.com"]

[Event "Titled Tuesday Blitz December 27 Late 2022"]
[White "Kavutskiy, Konstantin"]
[Black "Lenderman, Aleksandr"]
[WhiteFideId "2026384"]
[BlackFideId "2021285"]
[WhiteElo "2414"]
[BlackElo "2572"]
[Result "1/2-1/2"]
[Round "02"]
[TimeControl "180+2"]
[Date "2022.12.27"]
[WhiteClock "0:00:07"]
[BlackClock "0:00:07"]

1. d4 {[%clk 0:02:57]}  e6 {[%clk 0:02:58]} 2. Nf3 {[%clk 0:02:52]}  c5 {[%clk 0:02:55]} 3. e4 {[%clk 0:02:48]}  cxd4 {[%clk 0:02:56]} 4. Nxd4 {[%clk 0:02:48]}  Nf6 {[%clk 0:02:55]} 5. Nc3 {[%clk 0:02:48]}  Nc6 {[%clk 0:02:56]} 6. Ndb5 {[%clk 0:02:45]}  Bc5 {[%clk 0:02:54]} 7. Bf4 {[%clk 0:02:41]}  O-O {[%clk 0:02:51]} 8. Bc7 {[%clk 0:02:41]}  Qe7 {[%clk 0:02:51]} 9. Bd6 {[%clk 0:02:41]}  Bxd6 {[%clk 0:02:50]} 10. Qxd6 {[%clk 0:02:41]}  Ne8 {[%clk 0:02:47]} 11. Qxe7 {[%clk 0:02:32]}  Nxe7 {[%clk 0:02:48]} 12. O-O-O {[%clk 0:02:29]}  b6 {[%clk 0:02:47]} 13. f3 {[%clk 0:02:26]}  f5 {[%clk 0:02:46]} 14. exf5 {[%clk 0:02:24]}  Nxf5 {[%clk 0:02:44]} 15. Bd3 {[%clk 0:02:20]}  a6 {[%clk 0:02:35]} 16. Bxf5 {[%clk 0:02:08]}  axb5 {[%clk 0:02:33]} 17. Be4 {[%clk 0:02:05]}  Ra7 {[%clk 0:02:25]} 18. Nxb5 {[%clk 0:01:58]}  Rxa2 {[%clk 0:02:25]} 19. Kb1 {[%clk 0:01:58]}  Ra5 {[%clk 0:02:24]} 20. Nd6 {[%clk 0:01:55]}  Nxd6 {[%clk 0:02:24]} 21. Rxd6 {[%clk 0:01:56]}  Rg5 {[%clk 0:02:13]} 22. g3 {[%clk 0:01:53]}  b5 {[%clk 0:02:13]} 23. Rhd1 {[%clk 0:01:49]}  g6 {[%clk 0:02:06]} 24. b4 {[%clk 0:01:45]}  Kf7 {[%clk 0:02:00]} 25. Kb2 {[%clk 0:01:42]}  Ke7 {[%clk 0:01:59]} 26. Rb6 {[%clk 0:01:39]}  Re5 {[%clk 0:01:57]} 27. Rbd6 {[%clk 0:01:31]}  g5 {[%clk 0:01:55]} 28. Bb7 {[%clk 0:01:26]}  Re2 {[%clk 0:01:20]} 29. Bxc8 {[%clk 0:01:25]}  Rxc8 {[%clk 0:01:21]} 30. Rxd7+ {[%clk 0:01:26]}  Kf6 {[%clk 0:01:21]} 31. R1d2 {[%clk 0:01:25]}  Rxd2 {[%clk 0:01:21]} 32. Rxd2 {[%clk 0:01:26]}  h5 {[%clk 0:01:21]} 33. Kb3 {[%clk 0:01:22]}  e5 {[%clk 0:01:15]} 34. Rd5 {[%clk 0:01:18]}  g4 {[%clk 0:01:15]} 35. f4 {[%clk 0:01:10]}  exf4 {[%clk 0:01:16]} 36. gxf4 {[%clk 0:01:09]}  Rh8 {[%clk 0:01:14]} 37. Rxb5 {[%clk 0:01:08]}  h4 {[%clk 0:01:14]} 38. Ra5 {[%clk 0:00:57]}  g3 {[%clk 0:01:04]} 39. hxg3 {[%clk 0:00:58]}  h3 {[%clk 0:01:02]} 40. Ra1 {[%clk 0:00:58]}  Kf5 {[%clk 0:01:02]} 41. c4 {[%clk 0:00:53]}  Kg4 {[%clk 0:01:01]} 42. c5 {[%clk 0:00:50]}  Kxg3 {[%clk 0:01:01]} 43. f5 {[%clk 0:00:48]}  Rf8 {[%clk 0:01:01]} 44. Kc4 {[%clk 0:00:47]}  Rxf5 {[%clk 0:01:00]} 45. c6 {[%clk 0:00:45]}  Kg2 {[%clk 0:00:58]} 46. c7 {[%clk 0:00:39]}  Rf8 {[%clk 0:00:51]} 47. b5 {[%clk 0:00:38]}  h2 {[%clk 0:00:51]} 48. b6 {[%clk 0:00:37]}  Rf1 {[%clk 0:00:51]} 49. Rxf1 {[%clk 0:00:24]}  Kxf1 {[%clk 0:00:51]} 50. c8=Q {[%clk 0:00:25]}  h1=Q {[%clk 0:00:52]} 51. Qf5+ {[%clk 0:00:24]}  Ke2 {[%clk 0:00:49]} 52. Qd3+ {[%clk 0:00:24]}  Kf2 {[%clk 0:00:49]} 53. Qd4+ {[%clk 0:00:23]}  Ke2 {[%clk 0:00:38]} 54. Qe5+ {[%clk 0:00:22]}  Kf2 {[%clk 0:00:37]} 55. Qf4+ {[%clk 0:00:20]}  Ke2 {[%clk 0:00:35]} 56. Qg4+ {[%clk 0:00:20]}  Kf2 {[%clk 0:00:34]} 57. Qf5+ {[%clk 0:00:21]}  Ke2 {[%clk 0:00:31]} 58. Qe6+ {[%clk 0:00:21]}  Kf2 {[%clk 0:00:29]} 59. Qf7+ {[%clk 0:00:22]}  Ke2 {[%clk 0:00:28]} 60. b7 {[%clk 0:00:22]}  Qc6+ {[%clk 0:00:23]} 61. Kd4 {[%clk 0:00:20]}  Qb6+ {[%clk 0:00:23]} 62. Ke5 {[%clk 0:00:19]}  Qb2+ {[%clk 0:00:23]} 63. Ke6 {[%clk 0:00:19]}  Qb6+ {[%clk 0:00:18]} 64. Kf5 {[%clk 0:00:18]}  Qf2+ {[%clk 0:00:18]} 65. Kg6 {[%clk 0:00:18]}  Qb6+ {[%clk 0:00:16]} 66. Kg7 {[%clk 0:00:17]}  Qb2+ {[%clk 0:00:13]} 67. Kf8 {[%clk 0:00:17]}  Qh8+ {[%clk 0:00:11]} 68. Ke7 {[%clk 0:00:17]}  Qh4+ {[%clk 0:00:08]} 69. Kd7 {[%clk 0:00:14]}  Qd4+ {[%clk 0:00:08]} 70. Kc8 {[%clk 0:00:12]}  Qc5+ {[%clk 0:00:07]} 71. Kd8 {[%clk 0:00:11]}  Qd6+ {[%clk 0:00:06]} 72. Ke8 {[%clk 0:00:09]}  Qb8+ {[%clk 0:00:05]} 73. Ke7 {[%clk 0:00:06]}  Qxb7+ {[%clk 0:00:06]} 74. Kf8 {[%clk 0:00:06]}  Qxf7+ {[%clk 0:00:07]} 75. Kxf7 {[%clk 0:00:07]} 1/2-1/2


[Site "https://www.chess.com"]

[Event "Titled Tuesday Blitz December 27 Late 2022"]
[White "Kleinman, Michael"]
[Black "Vifleemskaia, Svetlana"]
[WhiteFideId "2609479"]
[BlackFideId "4129490"]
[WhiteElo "2387"]
[BlackElo "1971"]
[Result "1-0"]
[Round "02"]
[TimeControl "180+2"]
[Date "2022.12.27"]
[WhiteClock "0:00:12"]
[BlackClock "0:00:03"]

1. e4 {[%clk 0:03:00]}  e5 {[%clk 0:02:57]} 2. Nf3 {[%clk 0:03:00]}  Nc6 {[%clk 0:02:57]} 3. Bb5 {[%clk 0:03:01]}  a6 {[%clk 0:02:57]} 4. Ba4 {[%clk 0:03:01]}  Nf6 {[%clk 0:02:57]} 5. O-O {[%clk 0:03:02]}  Be7 {[%clk 0:02:56]} 6. Re1 {[%clk 0:03:00]}  b5 {[%clk 0:02:56]} 7. Bb3 {[%clk 0:03:00]}  d6 {[%clk 0:02:56]} 8. c3 {[%clk 0:02:57]}  O-O {[%clk 0:02:56]} 9. h3 {[%clk 0:02:57]}  Nd7 {[%clk 0:02:56]} 10. d4 {[%clk 0:02:55]}  Bf6 {[%clk 0:02:55]} 11. Be3 {[%clk 0:02:53]}  Na5 {[%clk 0:02:54]} 12. Bc2 {[%clk 0:02:38]}  Nc4 {[%clk 0:02:54]} 13. Bc1 {[%clk 0:02:38]}  c5 {[%clk 0:02:51]} 14. b3 {[%clk 0:02:35]}  Ncb6 {[%clk 0:02:49]} 15. Bb2 {[%clk 0:02:35]}  b4 {[%clk 0:02:45]} 16. dxc5 {[%clk 0:02:26]}  dxc5 {[%clk 0:02:44]} 17. cxb4 {[%clk 0:02:24]}  cxb4 {[%clk 0:02:43]} 18. Nbd2 {[%clk 0:02:22]}  Bb7 {[%clk 0:02:41]} 19. Rc1 {[%clk 0:02:20]}  Qe7 {[%clk 0:02:40]} 20. Nf1 {[%clk 0:02:09]}  Rfd8 {[%clk 0:02:29]} 21. Ng3 {[%clk 0:02:06]}  g6 {[%clk 0:02:28]} 22. Qe2 {[%clk 0:02:00]}  a5 {[%clk 0:02:13]} 23. Bb1 {[%clk 0:01:58]}  a4 {[%clk 0:02:05]} 24. Qe3 {[%clk 0:01:45]}  Rac8 {[%clk 0:01:54]} 25. Bd3 {[%clk 0:01:31]}  Nc5 {[%clk 0:01:46]} 26. Bb5 {[%clk 0:01:22]}  axb3 {[%clk 0:01:06]} 27. axb3 {[%clk 0:01:23]}  Nbd7 {[%clk 0:01:01]} 28. Rc4 {[%clk 0:01:13]}  Ba6 {[%clk 0:00:54]} 29. Rxb4 {[%clk 0:01:00]}  Rb8 {[%clk 0:00:47]} 30. Bxa6 {[%clk 0:00:51]}  Rxb4 {[%clk 0:00:46]} 31. Bc4 {[%clk 0:00:52]}  Rbb8 {[%clk 0:00:29]} 32. Ne2 {[%clk 0:00:52]}  Nb6 {[%clk 0:00:28]} 33. Bb5 {[%clk 0:00:46]}  Nbd7 {[%clk 0:00:20]} 34. Bc4 {[%clk 0:00:44]}  Nb6 {[%clk 0:00:20]} 35. Bb5 {[%clk 0:00:44]}  Nbd7 {[%clk 0:00:19]} 36. Nc3 {[%clk 0:00:35]}  Qd6 {[%clk 0:00:15]} 37. Rd1 {[%clk 0:00:30]}  Qb6 {[%clk 0:00:15]} 38. Bc4 {[%clk 0:00:28]}  Bg7 {[%clk 0:00:14]} 39. Nd5 {[%clk 0:00:28]}  Qb7 {[%clk 0:00:13]} 40. b4 {[%clk 0:00:28]}  Na4 {[%clk 0:00:12]} 41. Ba1 {[%clk 0:00:26]}  Ndb6 {[%clk 0:00:12]} 42. Nxe5 {[%clk 0:00:23]}  Nxc4 {[%clk 0:00:11]} 43. Nxc4 {[%clk 0:00:22]}  Bxa1 {[%clk 0:00:08]} 44. Rxa1 {[%clk 0:00:23]}  Ra8 {[%clk 0:00:07]} 45. Qh6 {[%clk 0:00:20]}  f5 {[%clk 0:00:05]} 46. Nf6+ {[%clk 0:00:20]}  Kh8 {[%clk 0:00:05]} 47. Ne5 {[%clk 0:00:18]}  Qg7 {[%clk 0:00:05]} 48. Qg5 {[%clk 0:00:14]}  h6 {[%clk 0:00:05]} 49. Nxg6+ {[%clk 0:00:11]}  Qxg6 {[%clk 0:00:03]} 50. Qxg6 {[%clk 0:00:12]} 1-0


[Site "https://www.chess.com"]

[Event "Titled Tuesday Blitz December 27 Late 2022"]
[White "Kujawski, Adam"]
[Black "Koutlas, Nikolaos"]
[WhiteFideId "1100920"]
[BlackFideId "25827138"]
[WhiteElo "2173"]
[BlackElo "2341"]
[Result "0-1"]
[Round "02"]
[TimeControl "180+2"]
[Date "2022.12.27"]
[WhiteClock "0:00:01"]
[BlackClock "0:00:55"]

1. e4 {[%clk 0:02:50]}  e6 {[%clk 0:03:00]} 2. d4 {[%clk 0:02:50]}  d5 {[%clk 0:03:01]} 3. Nc3 {[%clk 0:02:50]}  Nf6 {[%clk 0:03:00]} 4. Bg5 {[%clk 0:02:50]}  Bb4 {[%clk 0:02:59]} 5. e5 {[%clk 0:02:49]}  h6 {[%clk 0:02:59]} 6. Bd2 {[%clk 0:02:44]}  Bxc3 {[%clk 0:02:58]} 7. bxc3 {[%clk 0:02:44]}  Ne4 {[%clk 0:02:59]} 8. Bc1 {[%clk 0:02:35]}  c5 {[%clk 0:02:59]} 9. Ne2 {[%clk 0:02:31]}  Nc6 {[%clk 0:02:55]} 10. f3 {[%clk 0:02:29]}  Ng5 {[%clk 0:02:47]} 11. h4 {[%clk 0:02:29]}  Nh7 {[%clk 0:02:45]} 12. Nf4 {[%clk 0:02:09]}  Bd7 {[%clk 0:02:29]} 13. Be3 {[%clk 0:02:05]}  Qa5 {[%clk 0:02:27]} 14. Qd2 {[%clk 0:01:34]}  Rc8 {[%clk 0:02:22]} 15. Nh5 {[%clk 0:01:32]}  g6 {[%clk 0:02:10]} 16. Nf6+ {[%clk 0:00:58]}  Nxf6 {[%clk 0:02:09]} 17. exf6 {[%clk 0:00:58]}  cxd4 {[%clk 0:02:02]} 18. Bxh6 {[%clk 0:00:47]}  dxc3 {[%clk 0:01:43]} 19. Qg5 {[%clk 0:00:39]}  Nd4 {[%clk 0:01:37]} 20. Bd3 {[%clk 0:00:36]}  Bb5 {[%clk 0:01:35]} 21. Bxg6 {[%clk 0:00:20]}  Rg8 {[%clk 0:01:24]} 22. Bg7 {[%clk 0:00:16]}  Qb4 {[%clk 0:01:07]} 23. Bxf7+ {[%clk 0:00:14]}  Kd7 {[%clk 0:01:07]} 24. Bxg8 {[%clk 0:00:11]}  Qc4 {[%clk 0:00:58]} 25. Kf2 {[%clk 0:00:01]}  Qe2+ {[%clk 0:00:55]} 26. Kg3 {[%clk 0:00:01]}  Rxg8 {[%clk 0:00:55]} 0-1


[Site "https://www.chess.com"]

[Event "Titled Tuesday Blitz December 27 Late 2022"]
[White "Liu, Casper"]
[Black "Skvortsov, Andrei"]
[WhiteFideId "1454153"]
[BlackFideId "24108600"]
[WhiteElo "2278"]
[BlackElo "2313"]
[Result "1-0"]
[Round "02"]
[TimeControl "180+2"]
[Date "2022.12.27"]
[WhiteClock "0:00:46"]
[BlackClock "0:00:05"]

1. d4 {[%clk 0:02:49]}  Nf6 {[%clk 0:02:56]} 2. c4 {[%clk 0:02:48]}  c5 {[%clk 0:02:57]} 3. dxc5 {[%clk 0:02:46]}  e6 {[%clk 0:02:56]} 4. Nf3 {[%clk 0:02:46]}  Bxc5 {[%clk 0:02:55]} 5. g3 {[%clk 0:02:46]}  O-O {[%clk 0:02:54]} 6. Bg2 {[%clk 0:02:46]}  d5 {[%clk 0:02:55]} 7. O-O {[%clk 0:02:43]}  d4 {[%clk 0:02:52]} 8. a3 {[%clk 0:02:42]}  a5 {[%clk 0:02:52]} 9. Nbd2 {[%clk 0:02:42]}  a4 {[%clk 0:02:49]} 10. b4 {[%clk 0:02:37]}  axb3 {[%clk 0:02:48]} 11. Nxb3 {[%clk 0:02:37]}  Be7 {[%clk 0:02:40]} 12. Qxd4 {[%clk 0:02:34]}  Bd7 {[%clk 0:02:37]} 13. Ne5 {[%clk 0:02:32]}  Ba4 {[%clk 0:02:37]} 14. Qb2 {[%clk 0:02:18]}  Qc7 {[%clk 0:02:27]} 15. Bf4 {[%clk 0:02:08]}  Nh5 {[%clk 0:02:25]} 16. Nd4 {[%clk 0:02:03]}  Nxf4 {[%clk 0:02:23]} 17. gxf4 {[%clk 0:02:04]}  Bc5 {[%clk 0:02:11]} 18. e3 {[%clk 0:01:59]}  Ra7 {[%clk 0:01:44]} 19. Nb5 {[%clk 0:01:54]}  Qb6 {[%clk 0:01:44]} 20. Rab1 {[%clk 0:01:51]}  Ra5 {[%clk 0:01:31]} 21. Nc3 {[%clk 0:01:48]}  Qd8 {[%clk 0:01:18]} 22. Qxb7 {[%clk 0:01:41]}  Ra7 {[%clk 0:01:11]} 23. Qb2 {[%clk 0:01:36]}  f6 {[%clk 0:01:06]} 24. Nxa4 {[%clk 0:01:28]}  Rxa4 {[%clk 0:01:06]} 25. Rfd1 {[%clk 0:01:27]}  Qc7 {[%clk 0:01:02]} 26. Nd3 {[%clk 0:01:20]}  Rxa3 {[%clk 0:00:50]} 27. Qb7 {[%clk 0:00:54]}  Qd6 {[%clk 0:00:18]} 28. Ne5 {[%clk 0:00:46]}  Qa6 {[%clk 0:00:08]} 29. Qxb8 {[%clk 0:00:46]}  Rxb8 {[%clk 0:00:07]} 30. Rxb8+ {[%clk 0:00:47]}  Bf8 {[%clk 0:00:07]} 31. Rdd8 {[%clk 0:00:47]}  g5 {[%clk 0:00:04]} 32. Rxf8+ {[%clk 0:00:45]}  Kg7 {[%clk 0:00:04]} 33. Rf7+ {[%clk 0:00:46]}  Kh6 {[%clk 0:00:05]} 34. Rxf6+ {[%clk 0:00:46]}  Kh5 {[%clk 0:00:05]} 35. Bf3+ {[%clk 0:00:45]}  g4 {[%clk 0:00:05]} 36. Bxg4+ {[%clk 0:00:46]}  Kh4 {[%clk 0:00:05]} 37. Rh6# {[%clk 0:00:46]} 1-0


[Site "https://www.chess.com"]

[Event "Titled Tuesday Blitz December 27 Late 2022"]
[White "Liu, Kelsey"]
[Black "Bochnicka, Vladimir"]
[WhiteFideId "30944481"]
[BlackFideId "14943450"]
[WhiteElo "2065"]
[BlackElo "2327"]
[Result "0-1"]
[Round "02"]
[TimeControl "180+2"]
[Date "2022.12.27"]
[WhiteClock "0:00:03"]
[BlackClock "0:00:10"]

1. e4 {[%clk 0:03:00]}  c5 {[%clk 0:02:55]} 2. Nf3 {[%clk 0:02:55]}  Nc6 {[%clk 0:02:55]} 3. Bb5 {[%clk 0:02:54]}  e6 {[%clk 0:02:55]} 4. O-O {[%clk 0:02:41]}  Nge7 {[%clk 0:02:53]} 5. c3 {[%clk 0:02:40]}  a6 {[%clk 0:02:52]} 6. Be2 {[%clk 0:02:38]}  d5 {[%clk 0:02:50]} 7. e5 {[%clk 0:02:35]}  d4 {[%clk 0:02:43]} 8. d3 {[%clk 0:02:35]}  Ng6 {[%clk 0:02:42]} 9. cxd4 {[%clk 0:01:52]}  cxd4 {[%clk 0:02:41]} 10. Re1 {[%clk 0:01:29]}  Ngxe5 {[%clk 0:02:36]} 11. Bf4 {[%clk 0:01:27]}  Ng6 {[%clk 0:02:29]} 12. Bg3 {[%clk 0:01:26]}  Bd6 {[%clk 0:02:23]} 13. Na3 {[%clk 0:01:24]}  Bxg3 {[%clk 0:02:17]} 14. hxg3 {[%clk 0:01:23]}  O-O {[%clk 0:02:18]} 15. Nc4 {[%clk 0:01:22]}  b5 {[%clk 0:02:18]} 16. Ncd2 {[%clk 0:01:22]}  Bb7 {[%clk 0:02:18]} 17. Ne4 {[%clk 0:01:22]}  Rc8 {[%clk 0:02:05]} 18. Nc5 {[%clk 0:01:18]}  Qe7 {[%clk 0:01:54]} 19. Rc1 {[%clk 0:01:17]}  Nce5 {[%clk 0:01:45]} 20. Nxb7 {[%clk 0:01:15]}  Qxb7 {[%clk 0:01:44]} 21. Nxd4 {[%clk 0:01:09]}  Qd5 {[%clk 0:01:33]} 22. Nb3 {[%clk 0:01:01]}  Rxc1 {[%clk 0:01:31]} 23. Nxc1 {[%clk 0:01:00]}  Rc8 {[%clk 0:01:26]} 24. d4 {[%clk 0:00:57]}  Nc4 {[%clk 0:01:03]} 25. b3 {[%clk 0:00:54]}  Nb6 {[%clk 0:00:45]} 26. Bf3 {[%clk 0:00:53]}  Qg5 {[%clk 0:00:42]} 27. Nd3 {[%clk 0:00:51]}  h6 {[%clk 0:00:34]} 28. Nc5 {[%clk 0:00:46]}  a5 {[%clk 0:00:30]} 29. Qe2 {[%clk 0:00:33]}  Nf8 {[%clk 0:00:17]} 30. Qxb5 {[%clk 0:00:28]}  Nbd7 {[%clk 0:00:18]} 31. Qb7 {[%clk 0:00:20]}  Rd8 {[%clk 0:00:14]} 32. Qc7 {[%clk 0:00:16]}  Nxc5 {[%clk 0:00:13]} 33. dxc5 {[%clk 0:00:16]}  Qd2 {[%clk 0:00:13]} 34. Re2 {[%clk 0:00:14]}  Qc1+ {[%clk 0:00:12]} 35. Kh2 {[%clk 0:00:14]}  Rd7 {[%clk 0:00:12]} 36. Qf4 {[%clk 0:00:08]}  Qxc5 {[%clk 0:00:11]} 37. Be4 {[%clk 0:00:05]}  Rd4 {[%clk 0:00:10]} 38. Qf3 {[%clk 0:00:05]}  Qc1 {[%clk 0:00:10]} 39. Qe3 {[%clk 0:00:05]}  Rd1 {[%clk 0:00:10]} 40. Qxc1 {[%clk 0:00:04]}  Rxc1 {[%clk 0:00:11]} 41. Rc2 {[%clk 0:00:04]}  Ra1 {[%clk 0:00:11]} 42. Kh3 {[%clk 0:00:03]}  f5 {[%clk 0:00:09]} 43. Bd3 {[%clk 0:00:03]}  Rh1# {[%clk 0:00:10]} 0-1


[Site "https://www.chess.com"]

[Event "Titled Tuesday Blitz December 27 Late 2022"]
[White "Lobanov, Sergei"]
[Black "Klose, Eli"]
[WhiteFideId "24183750"]
[BlackFideId "16242955"]
[WhiteElo "2536"]
[BlackElo "1519"]
[Result "1-0"]
[Round "02"]
[TimeControl "180+2"]
[Date "2022.12.27"]
[WhiteClock "0:00:17"]
[BlackClock "0:00:45"]

1. e4 {[%clk 0:03:00]}  e6 {[%clk 0:02:58]} 2. d4 {[%clk 0:03:01]}  d5 {[%clk 0:02:19]} 3. Nc3 {[%clk 0:03:00]}  Bb4 {[%clk 0:02:17]} 4. e5 {[%clk 0:02:59]}  Ne7 {[%clk 0:02:14]} 5. a3 {[%clk 0:02:59]}  Bxc3+ {[%clk 0:02:10]} 6. bxc3 {[%clk 0:03:00]}  b6 {[%clk 0:02:11]} 7. h4 {[%clk 0:02:56]}  Ba6 {[%clk 0:02:06]} 8. Bxa6 {[%clk 0:02:56]}  Nxa6 {[%clk 0:02:06]} 9. h5 {[%clk 0:02:57]}  h6 {[%clk 0:02:02]} 10. Ne2 {[%clk 0:02:38]}  Qd7 {[%clk 0:01:58]} 11. Qd3 {[%clk 0:02:35]}  Qa4 {[%clk 0:01:52]} 12. f4 {[%clk 0:02:31]}  c5 {[%clk 0:01:49]} 13. g4 {[%clk 0:02:31]}  cxd4 {[%clk 0:01:46]} 14. cxd4 {[%clk 0:02:32]}  Rc8 {[%clk 0:01:45]} 15. c3 {[%clk 0:02:30]}  Qc4 {[%clk 0:01:43]} 16. Qf3 {[%clk 0:02:26]}  Nc7 {[%clk 0:01:39]} 17. f5 {[%clk 0:02:22]}  Kd7 {[%clk 0:01:37]} 18. a4 {[%clk 0:02:17]}  Qb3 {[%clk 0:01:29]} 19. Ba3 {[%clk 0:02:13]}  Rhe8 {[%clk 0:01:24]} 20. O-O {[%clk 0:02:10]}  Qc2 {[%clk 0:01:19]} 21. Ng3 {[%clk 0:02:01]}  Na6 {[%clk 0:01:13]} 22. Rfc1 {[%clk 0:01:55]}  Qd2 {[%clk 0:01:08]} 23. a5 {[%clk 0:01:43]}  b5 {[%clk 0:01:07]} 24. Rab1 {[%clk 0:01:33]}  b4 {[%clk 0:01:06]} 25. cxb4 {[%clk 0:01:27]}  Qxd4+ {[%clk 0:01:05]} 26. Kh1 {[%clk 0:01:19]}  Rxc1+ {[%clk 0:01:05]} 27. Rxc1 {[%clk 0:01:20]}  Rc8 {[%clk 0:01:05]} 28. fxe6+ {[%clk 0:01:11]}  fxe6 {[%clk 0:01:03]} 29. Rxc8 {[%clk 0:01:10]}  Kxc8 {[%clk 0:00:59]} 30. b5 {[%clk 0:01:06]}  Nc5 {[%clk 0:00:59]} 31. Qf8+ {[%clk 0:00:55]}  Kd7 {[%clk 0:00:58]} 32. Bxc5 {[%clk 0:00:56]}  Qxc5 {[%clk 0:00:58]} 33. Qxg7 {[%clk 0:00:57]}  Qxb5 {[%clk 0:00:57]} 34. Qxh6 {[%clk 0:00:55]}  Qxa5 {[%clk 0:00:57]} 35. Qe3 {[%clk 0:00:52]}  Qa1+ {[%clk 0:00:54]} 36. Kg2 {[%clk 0:00:49]}  Nc6 {[%clk 0:00:54]} 37. h6 {[%clk 0:00:38]}  Qxe5 {[%clk 0:00:54]} 38. Qd3 {[%clk 0:00:18]}  Ne7 {[%clk 0:00:52]} 39. h7 {[%clk 0:00:18]}  a5 {[%clk 0:00:48]} 40. Qb5+ {[%clk 0:00:16]}  Kd8 {[%clk 0:00:47]} 41. Qxa5+ {[%clk 0:00:16]}  Ke8 {[%clk 0:00:47]} 42. Qa8+ {[%clk 0:00:16]}  Kf7 {[%clk 0:00:45]} 43. h8=Q {[%clk 0:00:17]} 1-0


[Site "https://www.chess.com"]